bitfinex/quotes_BTCUSD_20220109
["timestamp","ask_amount","ask_price","bid_price","bid_amount"]
[1641695523300,1.33966595,41994.0,41993.0,0.000696]
[1641695523503,1.49237489,41994.0,41993.0,0.000696]
[1641695523700,1.50337489,41994.0,41993.0,0.0011249]
[1641695523902,0.2,41992.0,41980.0,0.3016]
[1641695524143,0.178704,41990.0,41980.0,0.3016]
[1641695524341,0.3204472,41981.0,41980.0,0.3016]
[1641695524740,0.3800152,41981.0,41980.0,0.3016]
[1641695525142,0.20500894,41990.0,41980.0,0.3016]
[1641695525342,0.29272138,41989.0,41980.0,0.3016]
[1641695525744,0.30172138,41989.0,41980.0,0.3016]
[1641695526142,0.60989107,41989.0,41980.0,0.3016]
[1641695526343,0.24773493,41984.0,41980.0,0.3016]
[1641695527047,0.24773493,41984.0,41981.0,0.00042795]
[1641695527644,0.26273493,41984.0,41981.0,0.00042795]
[1641695528093,0.32229493,41984.0,41982.0,0.00042541]
[1641695528989,0.30729493,41984.0,41982.0,0.00042541]
[1641695529290,0.30729493,41984.0,41982.0,0.0004254]
[1641695529695,0.31829493,41984.0,41982.0,0.0004254]
[1641695529990,0.25082335,41983.0,41982.0,0.0004254]
[1641695530190,0.25082335,41983.0,41980.0,0.3016]
[1641695530389,0.25082335,41983.0,41982.0,0.0004254]
[1641695530390,0.36996535,41983.0,41982.0,0.0004254]
[1641695530590,0.68306649,41983.0,41982.0,0.0004254]
[1641695530991,0.43224314,41983.0,41982.0,0.0004254]
[1641695531192,0.67282174,41983.0,41982.0,0.0004254]
[1641695531392,0.53224314,41983.0,41982.0,0.00040651]
[1641695531642,0.54224314,41983.0,41982.0,0.00040651]
[1641695532545,0.259581,41982.0,41971.0,0.004]
[1641695532744,0.059587,41974.0,41971.0,0.004]
[1641695533144,0.42396959,41974.0,41971.0,0.004]
[1641695533345,0.75346195,41973.0,41971.0,0.004]
[1641695533545,0.23683188,41972.0,41971.0,0.004]
[1641695533744,0.59110906,41973.0,41971.0,0.004]
[1641695533945,0.059583,41972.0,41971.0,0.004]
[1641695534344,0.059583,41972.0,41963.0,0.33302452]
[1641695534546,0.059583,41972.0,41964.0,0.383087]
[1641695534748,0.059583,41972.0,41966.0,0.05958001]
[1641695535146,0.32718948,41972.0,41966.0,0.05958001]
[1641695535383,0.059583,41972.0,41963.0,0.33302452]
[1641695535584,0.059583,41972.0,41965.0,0.059579]
[1641695535783,0.067583,41972.0,41967.0,0.00042705]
[1641695536585,0.059586,41969.0,41967.0,0.00042705]
[1641695536786,0.059586,41969.0,41963.0,0.33302452]
[1641695537185,0.29956252,41969.0,41963.0,0.33302452]
[1641695537387,0.26712426,41965.0,41963.0,0.33302452]
[1641695537587,0.059595,41964.0,41961.0,0.004]
[1641695538085,0.059595,41964.0,41962.0,0.00042272]
[1641695538686,0.059587,41966.0,41962.0,0.00042272]
[1641695539138,0.059587,41966.0,41963.0,0.00042269]
[1641695539340,0.40912097,41969.0,41963.0,0.00042269]
[1641695539341,0.02488705,41971.0,41963.0,0.06000869]
[1641695539540,0.02488705,41971.0,41967.0,0.05957974]
[1641695539741,0.1,41973.0,41967.0,0.05957974]
[1641695540140,0.1,41973.0,41969.0,0.00040386]
[1641695540141,0.059581,41970.0,41969.0,0.00040386]
[1641695540747,1.15146622,41975.0,41970.0,0.40415187]
[1641695540748,0.9257,41975.0,41970.0,0.40415187]
[1641695540944,0.2896,41980.0,41970.0,0.40415187]
[1641695541141,0.2896,41980.0,41978.0,0.33876999]
[1641695541340,0.119146,41980.0,41978.0,0.33876999]
[1641695541741,0.168146,41980.0,41978.0,0.33876999]
[1641695542986,0.119146,41980.0,41978.0,0.33876999]
[1641695543387,0.119146,41980.0,41974.0,0.05957093]
[1641695543587,0.119146,41980.0,41977.0,0.00041304]
[1641695543788,0.130146,41980.0,41977.0,0.00041304]
[1641695544586,0.130146,41980.0,41977.0,0.00041347]
[1641695544986,0.119146,41980.0,41977.0,0.00041347]
[1641695545587,0.119146,41980.0,41975.0,0.5006087]
[1641695545789,0.130146,41980.0,41977.0,0.00041326]
[1641695546190,0.011,41980.0,41977.0,0.00041326]
[1641695546390,0.011,41980.0,41978.0,0.383087]
[1641695546635,0.011,41980.0,41979.0,0.38433236]
[1641695546837,0.00042197,41989.0,41979.0,0.38433236]
[1641695547140,0.00042197,41989.0,41988.0,0.34536029]
[1641695547741,0.02242197,41989.0,41988.0,0.34536029]
[1641695547935,0.02242206,41989.0,41988.0,0.34536029]
[1641695548837,0.02242206,41989.0,41988.0,0.56285313]
[1641695549037,0.00042206,41989.0,41988.0,0.56285313]
[1641695549439,0.00042206,41989.0,41987.0,0.11910222]
[1641695549639,0.07242206,41989.0,41985.0,0.05955568]
[1641695550038,0.072,41989.0,41985.0,0.05955568]
[1641695550241,0.07242205,41989.0,41985.0,0.05955568]
[1641695550491,0.37640578,41989.0,41985.0,0.27312324]
[1641695550695,0.059557,41987.0,41985.0,0.27312324]
[1641695550993,0.059557,41987.0,41985.0,0.05955568]
[1641695551596,0.059557,41987.0,41983.0,0.27225762]
[1641695551798,0.073557,41987.0,41983.0,0.27225762]
[1641695551996,0.073557,41987.0,41983.0,0.05955929]
[1641695552196,0.073557,41987.0,41979.0,0.23203992]
[1641695552395,0.28825095,41986.0,41979.0,0.23203992]
[1641695552695,0.28825095,41986.0,41979.0,0.00124536]
[1641695552696,0.2508829,41982.0,41979.0,0.00124536]
[1641695552898,0.2508829,41982.0,41980.0,0.059563]
[1641695553498,0.059565,41981.0,41978.0,0.05956635]
[1641695553696,0.059565,41981.0,41980.0,0.009]
[1641695554938,0.059565,41981.0,41978.0,0.05956635]
[1641695555638,0.064565,41981.0,41978.0,0.07056635]
[1641695555939,0.064565,41981.0,41979.0,0.059566]
[1641695556242,0.005,41981.0,41979.0,0.059566]
[1641695556538,0.005,41981.0,41980.0,0.44264793]
[1641695556738,0.005,41981.0,41980.0,0.65702518]
[1641695556939,0.00042198,41989.0,41980.0,0.98437873]
[1641695557139,0.00042198,41989.0,41986.0,0.45833252]
[1641695557739,0.025,41989.0,41987.0,0.05955074]
[1641695557992,0.02542205,41989.0,41987.0,0.05955074]
[1641695558291,0.02542205,41989.0,41987.0,0.17865274]
[1641695558891,0.025,41989.0,41988.0,0.33747304]
[1641695559090,0.02542206,41989.0,41988.0,0.33747304]
[1641695559493,0.02042206,41989.0,41988.0,0.70415036]
[1641695559693,0.01042206,41989.0,41988.0,1.21704209]
[1641695559894,0.01042206,41989.0,41988.0,1.53721995]
[1641695560797,0.01042206,41989.0,41988.0,1.51767995]
[1641695560995,0.00042206,41989.0,41988.0,1.18850209]
[1641695561199,0.00042206,41989.0,41988.0,0.43215173]
[1641695561395,0.0003086,41991.0,41989.0,0.383087]
[1641695561649,0.0003086,41991.0,41989.0,0.442638]
[1641695561844,0.27435338,42001.0,41989.0,0.442638]
[1641695562045,0.059549,41997.0,41989.0,0.059551]
[1641695562245,0.119104,41996.0,41993.0,0.05954681]
[1641695562445,0.27435338,42001.0,41993.0,0.05954681]
[1641695562844,0.27435338,42001.0,41993.0,0.059545]
[1641695563048,0.27435338,42001.0,41989.0,0.212604]
[1641695563348,0.35,42002.0,41989.0,0.212604]
[1641695563349,0.31455175,41994.0,41989.0,0.212604]
[1641695563547,0.31455175,41994.0,41988.0,0.23818782]
[1641695563747,0.31455175,41994.0,41991.0,0.05954776]
[1641695564551,0.31498219,41994.0,41991.0,0.05954776]
[1641695564749,0.31498219,41994.0,41991.0,0.11909476]
[1641695565148,0.059548,41993.0,41991.0,0.11909476]
[1641695565687,0.064548,41993.0,41991.0,0.13409476]
[1641695565891,0.005,41993.0,41992.0,0.383087]
[1641695567091,0.24854947,41994.0,41991.0,0.11909476]
[1641695567592,0.24854947,41994.0,41991.0,0.05954776]
[1641695567593,0.30809647,41994.0,41991.0,0.05954776]
[1641695567792,0.31308683,41994.0,41991.0,0.013]
[1641695568796,0.31266603,41994.0,41991.0,0.013]
[1641695568996,0.98100899,41992.0,41984.0,0.00041626]
[1641695569249,0.059566,41987.0,41984.0,0.00041626]
[1641695569847,0.059566,41987.0,41977.0,0.24118794]
[1641695570044,0.49668468,41985.0,41984.0,0.00041633]
[1641695570243,0.90625668,41985.0,41984.0,0.00041633]
[1641695570642,0.65625668,41985.0,41984.0,0.00041633]
[1641695571046,0.65625668,41985.0,41984.0,0.00041634]
[1641695571843,0.66825668,41985.0,41984.0,0.00041634]
[1641695572043,0.66825668,41985.0,41975.0,0.43402839]
[1641695572243,0.66825668,41985.0,41984.0,0.00041613]
[1641695573089,0.76825668,41985.0,41984.0,0.00041613]
[1641695573290,0.66825668,41985.0,41984.0,0.00041611]
[1641695573490,1.06445435,41985.0,41984.0,0.00041611]
[1641695573793,1.13402835,41985.0,41984.0,0.00041611]
[1641695574290,1.11202835,41985.0,41975.0,0.43402839]
[1641695574489,0.81583068,41985.0,41984.0,0.00041611]
[1641695575292,0.84070919,41985.0,41984.0,0.00041611]
[1641695575695,0.78113719,41985.0,41984.0,0.00041611]
[1641695575895,0.79113719,41985.0,41984.0,0.00041611]
[1641695576494,0.73156319,41985.0,41975.0,0.43402839]
[1641695576746,0.09445151,41985.0,41984.0,0.00041612]
[1641695576943,0.01,41985.0,41984.0,0.00041612]
[1641695577140,0.119114,41991.0,41984.0,0.00041612]
[1641695577541,0.119114,41991.0,41983.0,0.00127512]
[1641695577743,0.063551,41991.0,41988.0,0.64436889]
[1641695577945,0.063551,41991.0,41988.0,0.8569288]
[1641695578144,0.004,41991.0,41988.0,0.85976726]
[1641695578744,0.004,41991.0,41988.0,0.97886674]
[1641695578946,0.00042099,41994.0,41988.0,0.97886674]
[1641695579142,0.00042099,41994.0,41991.0,0.059548]
[1641695579342,0.05996699,41994.0,41991.0,0.27379778]
[1641695579844,0.06596702,41994.0,41991.0,0.28179778]
[1641695580041,0.06596702,41994.0,41991.0,0.067548]
[1641695580495,0.06596702,41994.0,41991.0,0.18664061]
[1641695580891,0.06596702,41994.0,41992.0,0.22647957]
[1641695580892,0.006,41994.0,41992.0,0.22647957]
[1641695581091,1.064392,41998.0,41992.0,0.22647957]
[1641695581092,0.9453,41998.0,41992.0,0.22647957]
[1641695581294,0.9453,41998.0,41993.0,0.059537]
[1641695581494,1.07688404,41999.0,41993.0,0.059537]
[1641695581793,0.009,41998.0,41996.0,0.33413078]
[1641695581995,0.009,41998.0,41997.0,0.48274518]
[1641695582995,1.07688404,41999.0,41997.0,0.48274518]
[1641695583194,1.07688404,41999.0,41998.0,0.21574133]
[1641695583395,1.07688404,41999.0,41998.0,0.59619666]
[1641695583599,0.9361,42009.0,42001.0,0.00128302]
[1641695584360,0.9361,42009.0,42005.0,0.05952661]
[1641695584561,0.9361,42009.0,42008.0,0.41282955]
[1641695584760,0.059523,42010.0,42008.0,0.41282955]
[1641695584962,0.054523,42010.0,42008.0,0.41282955]
[1641695585360,0.0549524,42010.0,42008.0,0.41282955]
[1641695585761,0.0839524,42010.0,42008.0,0.68856239]
[1641695585963,0.0294294,42010.0,42009.0,0.21475464]
[1641695586362,0.029,42010.0,42009.0,0.59784164]
[1641695586563,0.0294294,42010.0,42009.0,0.59784164]
[1641695586963,0.0004294,42010.0,42009.0,0.59784164]
[1641695587164,0.0004294,42010.0,42009.0,0.383087]
[1641695587364,0.0004294,42010.0,42008.0,0.27719463]
[1641695587566,0.0004294,42010.0,42006.0,0.05952925]
[1641695587765,0.0354294,42010.0,42009.0,0.001]
[1641695588193,0.0949574,42010.0,42009.0,0.001]
[1641695588593,0.094528,42010.0,42009.0,0.001]
[1641695588794,0.0949574,42010.0,42009.0,0.001]
[1641695588993,0.0599574,42010.0,42005.0,0.6422405]
[1641695589195,0.0599574,42010.0,42007.0,0.1190534]
[1641695589794,0.00041978,42009.0,42008.0,0.21294938]
[1641695589993,0.00041978,42009.0,42008.0,0.59603638]
[1641695590194,0.06759779,42015.0,42009.0,0.383087]
[1641695590395,0.06759779,42015.0,42011.0,0.11904348]
[1641695590799,0.059522,42014.0,42011.0,0.11904348]
[1641695591846,0.114522,42014.0,42011.0,0.11904348]
[1641695592446,0.114522,42014.0,42012.0,0.05952]
[1641695592646,0.114522,42014.0,42012.0,0.11903987]
[1641695593048,0.059522,42014.0,42012.0,0.11903987]
[1641695593548,0.059522,42014.0,42012.0,0.05951987]
[1641695593747,0.084522,42014.0,42012.0,0.05951987]
[1641695594150,0.08494897,42014.0,42012.0,0.05951987]
[1641695594348,0.07494897,42014.0,42012.0,0.05951987]
[1641695594950,0.04994897,42014.0,42012.0,0.05951987]
[1641695595149,0.049522,42014.0,42012.0,0.05951987]
[1641695595391,0.04994897,42014.0,42012.0,0.05951987]
[1641695595794,0.09494897,42014.0,42012.0,0.06051987]
[1641695596692,0.09494897,42014.0,42012.0,0.12003987]
[1641695597096,0.04994897,42014.0,42012.0,0.11903987]
[1641695597897,0.09694897,42014.0,42012.0,0.55421952]
[1641695598098,0.04742697,42014.0,42012.0,0.88477102]
[1641695598297,0.04742697,42014.0,42012.0,0.67325134]
[1641695598499,0.047,42014.0,42012.0,0.67325134]
[1641695598698,0.04741751,42014.0,42012.0,0.67325134]
[1641695599141,0.00041751,42014.0,42012.0,0.67325134]
[1641695599645,0.04148126,42016.0,42012.0,0.67325134]
[1641695599841,0.02141751,42014.0,42013.0,0.059515]
[1641695601043,0.00041751,42014.0,42013.0,0.059515]
[1641695601846,0.06641751,42014.0,42012.0,0.05951987]
[1641695602649,0.06641751,42014.0,42011.0,0.05952301]
[1641695602892,0.059524,42013.0,42011.0,0.05952301]
[1641695603793,0.078524,42013.0,42011.0,0.11904501]
[1641695605297,0.31133536,42013.0,42011.0,0.11904501]
[1641695605495,0.078524,42013.0,42002.0,0.2915]
[1641695605695,0.23932344,42012.0,42000.0,0.00171956]
[1641695605896,0.059535,42007.0,42000.0,0.00171956]
[1641695606096,0.059535,42007.0,42003.0,0.059532]
[1641695606495,0.059535,42007.0,42002.0,0.37017148]
[1641695606751,0.059535,42007.0,42003.0,0.05953422]
[1641695606953,0.059535,42007.0,42002.0,0.48922702]
[1641695607153,0.015,42013.0,42004.0,0.059528]
[1641695607354,0.015,42013.0,42002.0,0.53922702]
[1641695607853,0.007,42013.0,42004.0,0.013]
[1641695608054,0.007,42013.0,42006.0,0.26748155]
[1641695608255,0.007,42013.0,42008.0,0.059519]
[1641695609055,0.05952,42013.0,42010.0,0.05951895]
[1641695609455,0.00041765,42014.0,42013.0,0.61070624]
[1641695609656,0.00041769,42014.0,42013.0,0.61070624]
[1641695610736,0.00041772,42014.0,42013.0,0.61070624]
[1641695611338,0.8,42013.0,42006.0,3.12e-06]
[1641695611538,0.35,42009.0,41993.0,0.2843]
[1641695611737,0.0478,42012.0,41994.0,0.07180302]
[1641695611738,0.00127593,42008.0,41994.0,0.07180302]
[1641695611938,0.05263288,42012.0,41994.0,0.07180302]
[1641695611939,0.1,42009.0,42000.0,0.00042041]
[1641695612237,0.11216688,42012.0,42004.0,0.059531]
[1641695612438,0.58987915,42008.0,42004.0,0.059531]
[1641695612639,0.68987915,42008.0,42004.0,0.059531]
[1641695612839,0.80894415,42008.0,42004.0,0.059531]
[1641695613039,0.5273691,42008.0,42004.0,0.059531]
[1641695613237,0.5273691,42008.0,42006.0,0.05952983]
[1641695613439,0.119065,42008.0,42006.0,0.05952983]
[1641695613639,0.00483288,42012.0,42006.0,0.05952983]
[1641695613842,0.011,42008.0,42006.0,0.23046852]
[1641695614039,0.011,42008.0,42007.0,0.383087]
[1641695614252,0.011,42008.0,42007.0,0.6096109]
[1641695615151,0.66870576,42014.0,42007.0,0.6096109]
[1641695615349,0.66870576,42014.0,42010.0,0.05952163]
[1641695615350,0.32046461,42014.0,42010.0,0.05952163]
[1641695615549,0.059522,42013.0,42010.0,0.05952163]
[1641695617990,0.083522,42013.0,42010.0,0.05952163]
[1641695618591,0.083522,42013.0,42010.0,0.04952163]
[1641695619091,0.059522,42013.0,42010.0,0.04952163]
[1641695619891,0.072522,42013.0,42010.0,0.05352163]
[1641695621093,0.072522,42013.0,42011.0,0.21569584]
[1641695621294,0.059522,42013.0,42011.0,0.21569584]
[1641695621744,0.00041769,42014.0,42011.0,0.21569584]
[1641695621947,0.021,42013.0,42011.0,0.21969584]
[1641695622745,0.021,42013.0,42012.0,0.059516]
[1641695622948,0.021,42013.0,42012.0,0.1190312]
[1641695623146,0.00041769,42014.0,42012.0,0.1190312]
[1641695623845,0.021,42014.0,42012.0,0.1230312]
[1641695624049,0.08093571,42014.0,42012.0,0.1230312]
[1641695624647,0.02141771,42014.0,42012.0,0.24206023]
[1641695625048,0.02141771,42014.0,42012.0,0.23806023]
[1641695625248,0.00041771,42014.0,42012.0,0.23806023]
[1641695625893,0.01941771,42014.0,42012.0,0.24306023]
[1641695626193,0.01941771,42014.0,42013.0,0.3753693]
[1641695627093,0.00041771,42014.0,42013.0,0.3753693]
[1641695627292,0.00041772,42014.0,42013.0,0.3753693]
[1641695627893,0.02641772,42014.0,42013.0,0.3783693]
[1641695628294,0.026,42014.0,42013.0,0.3783693]
[1641695628493,0.02641772,42014.0,42013.0,0.3783693]
[1641695629141,0.00041772,42014.0,42013.0,0.3753693]
[1641695629545,0.00041772,42014.0,42013.0,0.64540138]
[1641695629841,0.02841772,42014.0,42013.0,0.64540138]
[1641695630845,0.02841772,42014.0,42013.0,0.4348853]
[1641695631044,0.00041772,42014.0,42013.0,0.4348853]
[1641695631946,0.04241772,42014.0,42013.0,0.4368853]
[1641695632746,0.042,42014.0,42013.0,0.4368853]
[1641695632992,0.04241772,42014.0,42013.0,0.4368853]
[1641695633893,0.02941772,42014.0,42013.0,0.4388853]
[1641695635194,0.00041772,42014.0,42013.0,0.4348853]
[1641695635996,0.029,42014.0,42013.0,0.4388853]
[1641695636194,0.02941772,42014.0,42013.0,0.4388853]
[1641695637050,0.029,42014.0,42013.0,0.4388853]
[1641695637254,0.00041772,42014.0,42013.0,0.4348853]
[1641695637952,0.02841772,42014.0,42013.0,0.4388853]
[1641695638553,0.02841772,42014.0,42013.0,0.65044706]
[1641695638755,0.02841772,42014.0,42013.0,0.75173128]
[1641695639056,0.02841772,42014.0,42013.0,0.89953128]
[1641695639254,0.00110601,42016.0,42013.0,1.27861828]
[1641695639455,0.00110601,42016.0,42015.0,0.883087]
[1641695639655,0.00110601,42016.0,42015.0,0.930887]
[1641695639857,0.00110601,42016.0,42015.0,0.430887]
[1641695640603,0.00152375,42016.0,42015.0,0.430887]
[1641695641407,0.00152375,42016.0,42015.0,0.6754763]
[1641695641607,0.00152374,42016.0,42015.0,0.6754763]
[1641695642007,0.00152374,42016.0,42015.0,0.6884763]
[1641695642208,0.00152374,42016.0,42015.0,0.6406763]
[1641695642609,0.00110601,42016.0,42015.0,0.6406763]
[1641695642909,0.00152374,42016.0,42015.0,0.6406763]
[1641695643108,0.00152374,42016.0,42015.0,0.6276763]
[1641695643710,0.00110601,42016.0,42015.0,0.383087]
[1641695643909,0.00152374,42016.0,42015.0,0.61032407]
[1641695645153,0.00152374,42016.0,42015.0,0.383087]
[1641695645455,0.00152374,42016.0,42015.0,0.59513729]
[1641695645855,0.00110601,42016.0,42015.0,0.60913729]
[1641695646058,0.00152374,42016.0,42015.0,0.60913729]
[1641695646857,0.00152374,42016.0,42015.0,0.397087]
[1641695647058,0.00152374,42016.0,42015.0,0.61276448]
[1641695647259,0.00152374,42016.0,42015.0,0.59876448]
[1641695647459,0.00152374,42016.0,42015.0,0.383087]
[1641695648004,0.00152374,42016.0,42015.0,0.394087]
[1641695649206,0.00110601,42016.0,42015.0,0.383087]
[1641695649405,0.00152374,42016.0,42015.0,0.383087]
[1641695649906,0.00152374,42016.0,42015.0,0.385087]
[1641695650308,0.00110601,42016.0,42015.0,0.385087]
[1641695650506,0.00152374,42016.0,42015.0,0.385087]
[1641695651110,0.24152374,42016.0,42015.0,0.385087]
[1641695651307,0.24152374,42016.0,42015.0,0.383087]
[1641695651954,0.24152374,42016.0,42015.0,0.005]
[1641695652553,0.24110601,42016.0,42015.0,0.005]
[1641695652758,0.15982201,42017.0,42016.0,0.00155189]
[1641695653155,0.20762201,42017.0,42016.0,0.00155189]
[1641695654054,0.10762201,42017.0,42016.0,0.00155189]
[1641695654255,0.23844811,42016.0,42006.0,0.30063216]
[1641695654455,0.059527,42012.0,42006.0,0.36015916]
[1641695654654,0.059527,42012.0,42006.0,0.69878584]
[1641695655054,0.059527,42012.0,42007.0,0.05952619]
[1641695655255,0.059527,42012.0,42003.0,0.2861134]
[1641695655503,0.38637301,42012.0,42003.0,0.2861134]
[1641695655703,0.38637301,42012.0,42006.0,0.059527]
[1641695655903,0.38637301,42012.0,42007.0,0.00043085]
[1641695656104,0.38637301,42012.0,42007.0,0.05995731]
[1641695656905,0.38637301,42012.0,42007.0,0.05952646]
[1641695657104,0.38637301,42012.0,42009.0,0.00043083]
[1641695658007,0.059527,42012.0,42007.0,0.05952646]
[1641695658207,0.059527,42012.0,42010.0,0.00043082]
[1641695658813,0.119056,42012.0,42010.0,0.00043082]
[1641695659161,0.61540821,42011.0,42000.0,0.11906366]
[1641695659360,0.61540821,42011.0,42010.0,0.00043081]
[1641695659562,0.71540821,42011.0,42010.0,0.00043081]
[1641695659761,0.72024373,42011.0,42010.0,0.00043081]
[1641695660164,0.83931873,42011.0,42010.0,0.00043081]
[1641695660363,0.7174339,42002.0,41996.0,0.33858782]
[1641695660562,0.7174339,42002.0,41997.0,0.05954096]
[1641695660760,0.7174339,42002.0,41995.0,0.27358712]
[1641695661161,0.8174339,42002.0,41995.0,0.27358712]
[1641695661368,0.8174339,42002.0,41993.0,0.000696]
[1641695661562,0.26928693,42001.0,41998.0,0.00042124]
[1641695661762,0.28582013,41999.0,41998.0,0.00042124]
[1641695662162,0.54422362,41999.0,41998.0,0.00042124]
[1641695662364,0.54547635,41999.0,41998.0,0.00042124]
[1641695662564,0.269094,41999.0,41998.0,0.00042124]
[1641695662765,0.28306512,41999.0,41993.0,0.008696]
[1641695663008,0.3115975,41994.0,41993.0,0.008696]
[1641695663207,0.3593975,41994.0,41993.0,0.000696]
[1641695663406,0.39766137,41987.0,41979.0,2.08581765]
[1641695663608,0.39766137,41987.0,41972.0,0.91857428]
[1641695663609,0.26428871,41982.0,41973.0,0.74496414]
[1641695663806,0.26428871,41982.0,41977.0,0.383087]
[1641695664109,0.119137,41984.0,41979.0,0.30914936]
[1641695664306,0.059567,41982.0,41979.0,0.30914936]
[1641695664708,0.059567,41982.0,41980.0,0.00043007]
[1641695665709,0.059567,41982.0,41973.0,1.08449312]
[1641695665908,0.071567,41982.0,41980.0,0.00043007]
[1641695666855,0.071567,41982.0,41973.0,0.33952898]
[1641695667056,0.071567,41982.0,41980.0,0.00043007]
[1641695667255,0.059567,41982.0,41980.0,0.00043007]
[1641695667555,0.059567,41982.0,41980.0,0.28709024]
[1641695667756,0.33691937,41987.0,41980.0,0.28709024]
[1641695667757,0.0478,41987.0,41981.0,0.21481541]
[1641695667957,0.9761,41991.0,41981.0,0.21834977]
[1641695667958,0.015,41982.0,41981.0,0.21834977]
[1641695668156,0.015,41982.0,41981.0,0.433087]
[1641695668556,0.015,41982.0,41981.0,1.21572711]
[1641695668756,0.015,41982.0,41981.0,0.88825565]
[1641695668957,0.015,41982.0,41981.0,0.383087]
[1641695669160,0.059561,41983.0,41981.0,0.00041251]
[1641695669956,0.065561,41983.0,41981.0,0.01641251]
[1641695670157,0.065561,41983.0,41981.0,0.016]
[1641695670407,0.065561,41983.0,41981.0,0.0164125]
[1641695671002,0.065561,41983.0,41981.0,0.60023348]
[1641695671201,0.065561,41983.0,41981.0,0.58423348]
[1641695671202,0.059561,41983.0,41981.0,0.58423348]
[1641695671402,0.059561,41983.0,41981.0,0.58424136]
[1641695672103,0.059561,41983.0,41981.0,0.59424136]
[1641695672104,0.064561,41983.0,41981.0,0.59424136]
[1641695672502,0.34625793,41982.0,41981.0,0.59424136]
[1641695673103,0.44625793,41982.0,41981.0,0.59424136]
[1641695673304,0.44625793,41982.0,41981.0,0.58424136]
[1641695673505,0.44625793,41982.0,41981.0,0.58382098]
[1641695673702,0.44625793,41982.0,41981.0,0.58424158]
[1641695674148,0.71925793,41982.0,41981.0,0.58424158]
[1641695674355,0.5,41981.0,41970.0,0.00124681]
[1641695674553,0.059582,41975.0,41968.0,0.000696]
[1641695674751,0.25815425,41974.0,41968.0,0.000696]
[1641695674950,0.3378542,41975.0,41968.0,0.000696]
[1641695675149,0.27618678,41972.0,41968.0,0.000696]
[1641695675751,0.059597,41970.0,41968.0,0.000696]
[1641695675950,0.35,41969.0,41968.0,0.016696]
[1641695676151,0.45,41969.0,41968.0,0.016696]
[1641695676452,0.00483552,41969.0,41968.0,0.016696]
[1641695676749,0.059597,41970.0,41968.0,0.016696]
[1641695677349,0.059597,41970.0,41968.0,0.000696]
[1641695677650,0.25352607,41969.0,41968.0,0.000696]
[1641695678505,0.070597,41970.0,41968.0,0.000696]
[1641695678703,0.011,41970.0,41968.0,0.30812228]
[1641695679001,0.50916829,41971.0,41968.0,0.17941908]
[1641695679201,0.50916829,41971.0,41968.0,0.17984822]
[1641695679401,0.50916829,41971.0,41969.0,0.34928334]
[1641695679801,0.50916829,41971.0,41968.0,0.00112514]
[1641695680003,0.51516829,41971.0,41969.0,0.016]
[1641695680201,0.51516829,41971.0,41969.0,0.01642913]
[1641695681205,0.50916829,41971.0,41968.0,0.000696]
[1641695681502,0.059582,41970.0,41969.0,0.00042913]
[1641695681751,0.50916829,41971.0,41969.0,0.00042913]
[1641695681957,0.006,41970.0,41969.0,0.00942913]
[1641695682353,0.006,41970.0,41969.0,0.009]
[1641695682554,0.006,41970.0,41969.0,0.00942913]
[1641695683152,0.50916829,41971.0,41969.0,0.00042913]
[1641695683553,0.50916829,41971.0,41969.0,0.00041872]
[1641695683953,0.51216829,41971.0,41969.0,0.01341872]
[1641695684552,0.75216829,41971.0,41969.0,0.013]
[1641695684854,0.75216829,41971.0,41969.0,0.01341939]
[1641695685252,0.74916829,41971.0,41969.0,0.00041939]
[1641695686100,0.75416829,41971.0,41969.0,0.01641939]
[1641695686300,0.245,41971.0,41969.0,0.01641939]
[1641695686699,0.245,41971.0,41969.0,0.016]
[1641695686900,0.245,41971.0,41969.0,0.01641939]
[1641695687300,0.24,41971.0,41969.0,0.00041939]
[1641695687702,0.059581,41970.0,41969.0,0.00041939]
[1641695688903,0.059581,41970.0,41968.0,0.000696]
[1641695689154,0.059581,41970.0,41969.0,0.00041936]
[1641695689855,0.24,41971.0,41969.0,0.00041936]
[1641695690059,0.014,41970.0,41968.0,0.000696]
[1641695690256,0.014,41970.0,41969.0,0.45041936]
[1641695690457,0.014,41970.0,41969.0,1.11177993]
[1641695690656,0.014,41970.0,41969.0,1.21177993]
[1641695690858,0.014,41970.0,41969.0,0.76177993]
[1641695691257,0.24,41971.0,41969.0,0.76177993]
[1641695691458,0.24,41971.0,41970.0,0.60276273]
[1641695691662,0.24,41971.0,41970.0,0.70276273]
[1641695691857,1.046569,41978.0,41973.0,0.05956845]
[1641695692057,0.059569,41978.0,41973.0,0.05956845]
[1641695692257,0.059569,41978.0,41973.0,0.05]
[1641695692458,0.059569,41978.0,41975.0,0.00041924]
[1641695693409,0.059569,41978.0,41976.0,0.00041923]
[1641695694008,0.085569,41978.0,41976.0,0.00241923]
[1641695694507,0.085569,41978.0,41976.0,0.00241922]
[1641695695409,0.325569,41978.0,41976.0,0.00241922]
[1641695695607,0.525849,41978.0,41976.0,0.00241922]
[1641695696007,0.516849,41978.0,41976.0,0.00041922]
[1641695696655,0.516849,41978.0,41970.0,0.55276273]
[1641695696858,0.516849,41978.0,41976.0,0.00041922]
[1641695697258,0.499849,41978.0,41976.0,0.00041922]
[1641695697757,0.499849,41978.0,41970.0,0.67191802]
[1641695697960,0.499849,41978.0,41976.0,0.00041922]
[1641695698159,0.526849,41978.0,41976.0,0.00041922]
[1641695699359,0.499849,41978.0,41976.0,0.00041922]
[1641695700058,0.511849,41978.0,41976.0,0.00041922]
[1641695701000,0.311569,41978.0,41974.0,0.05957397]
[1641695701201,0.311569,41978.0,41976.0,0.00041922]
[1641695701400,0.299569,41978.0,41976.0,0.00041922]
[1641695702099,0.312569,41978.0,41972.0,0.2382818]
[1641695702299,0.312569,41978.0,41976.0,0.00041922]
[1641695703501,0.299569,41978.0,41976.0,0.00041922]
[1641695704152,0.324569,41978.0,41976.0,0.00041922]
[1641695704352,0.324569,41978.0,41971.0,0.059579]
[1641695704553,0.324569,41978.0,41976.0,0.00041922]
[1641695705357,0.299569,41978.0,41976.0,0.00041922]
[1641695705553,0.299569,41978.0,41977.0,0.27273514]
[1641695705758,0.299569,41978.0,41977.0,0.61721881]
[1641695705953,0.299569,41978.0,41977.0,0.27273514]
[1641695706158,0.311569,41978.0,41977.0,0.28173514]
[1641695707355,0.299569,41978.0,41977.0,0.27273514]
[1641695708007,0.307569,41978.0,41977.0,0.28273514]
[1641695709306,0.299569,41978.0,41977.0,0.27273514]